[Event "Czech Extraliga 2024-25"]
[Site "Czechia"]
[Date "2024.11.03"]
[Round "2.3"]
[White "Vykouk, Jan"]
[Black "Bouska, Jiri"]
[Result "1/2-1/2"]
[ECO "A14"]
[WhiteElo "2473"]
[BlackElo "2227"]
[Annotator "TA"]
[PlyCount "53"]
[EventDate "2024.09.12"]
[EventType "team-tourn"]
[EventCountry "CZE"]
[SourceTitle "playchess.com"]
[Source "ChessBase"]
[SourceQuality "1"]
[TimeControl "40/5400+30:1800+30"]

{[%evp 12,53,18,10,18,6,0,0,33,3,14,13,7,-16,-18,-33,-38,-33,-37,-25,-31,-29,-23,-19,-20,-32,-31,-33,-24,-18,0,-21,30,31,17,-54,-19,-41,-13,-111,-73,-91,-96,-96]} 1. c4 {[%emt 0:00:03]} e6 {[%emt 0:00:05]} 2. g3 {[%emt 0:00:13]} Nf6 {[%emt 0:00:17]} 3. Bg2 {[%emt 0:00:13]} d5 {[%emt 0:00:12]} 4. Nf3 {[%emt 0:00:37][%cal Bg1f3,Bf3e5,Be5d3][%mdl 32]} Be7 {[%emt 0:00:17]} 5. b3 {[%emt 0:01:20]} d4 {[%emt 0:00:52]} 6. O-O {[%emt 0:00:14]} O-O {[%emt 0:00:41]} 7. e3 {[%emt 0:00:08]} c5 {[%emt 0:00:47]} 8. Ne5 {[%emt 0:08:34] Prevents Nc6} Qc7 {[%emt 0:04:31]} 9. f4 {[%emt 0:05:59]} Nfd7 {[%emt 0:09:14] The position is equal.} 10. Nd3 {[%emt 0:07:03]} Nc6 {[%emt 0:12:11]} 11. Na3 {[%emt 0:00:22]} a6 {[%emt 0:00:49]} 12. Nc2 {[%emt 0:00:38]} b5 {[%emt 0:08:30]} 13. cxb5 {[%emt 0:04:15]} axb5 {[%emt 0:00:18]} 14. exd4 {[%emt 0:00:17]} cxd4 {[%emt 0:00:48]} 15. Bb2 {[%emt 0:00:49]} Bb7 {[%emt 0:01:00]} 16. Qe2 {[%emt 0:03:34]} Qb6 {[%emt 0:12:19]} 17. b4 {[%emt 0:07:53]} Bf6 {[%emt 0:06:11]} 18. Qf2 {[%emt 0:04:03]} Rac8 {[%emt 0:01:36]} 19. Rac1 {[%emt 0:00:37]} Rfd8 {[%emt 0:05:17]} 20. a3 {[%emt 0:00:08]} Ba8 {[%emt 0:03:50]} 21. Na1 {[%emt 0:04:05]} e5 {[%emt 0:08:06]} (21... Qa7 $142) 22. Rfe1 {[%emt 0:00:19]} exf4 {[%emt 0:01:22]} 23. gxf4 {[%emt 0:02:41]} (23. Qxf4 $11 Rb8 24. Nb3) 23... Qa7 {[%emt 0:05:59] next ...Nb6 is good for Black.} 24. Nb3 {[%emt 0:04:21]} Nb6 {[%emt 0:02:07] aiming for ...Nc4.} 25. Nxd4 {[%emt 0:17:41]} Nxd4 {[%emt 0:01:08]} 26. Bxd4 {[%emt 0:08:34]} Bxd4 {[%emt 0:12:50]} 27. Qxd4 {[%emt 0:00:06] Weighted Error Value: White=0.19 (very precise) /Black=0.14 (very precise) .  Mistake:       	White=2     	Black=1      Inaccurate:     	White=1     	Black=4      OK:         	White=4     	Black=3      Best:        	White=1     	---} 1/2-1/2

[Event "Czech Extraliga 2024-25"]
[Site "Czechia"]
[Date "2024.11.03"]
[Round "2.3"]
[White "Cyborowski, Lukasz"]
[Black "Hracek, Zbynek"]
[Result "1/2-1/2"]
[ECO "D40"]
[WhiteElo "2454"]
[BlackElo "2541"]
[Annotator "TA"]
[PlyCount "29"]
[EventDate "2024.09.12"]
[EventType "team-tourn"]
[EventCountry "CZE"]
[SourceTitle "playchess.com"]
[Source "ChessBase"]
[SourceQuality "1"]
[TimeControl "40/5400+30:1800+30"]

{[%evp 20,29,12,0,10,5,7,4,12,17,6,0]} 1. Nf3 {[%emt 0:00:05]} d5 {[%emt 0:00:06]} 2. d4 {[%emt 0:00:20]} Nf6 {[%emt 0:00:09]} 3. c4 {[%emt 0:01:21]} dxc4 {[%emt 0:00:10]} 4. e3 {[%emt 0:00:26]} e6 {[%emt 0:00:05]} 5. Bxc4 {[%emt 0:00:35]} c5 {[%emt 0:00:04]} 6. O-O {[%emt 0:02:07]} Nc6 {[%emt 0:00:03]} 7. Nc3 {[%emt 0:06:49]} a6 {[%emt 0:00:11]} 8. dxc5 {[%emt 0:20:56]} Qxd1 {[%emt 0:01:17]} 9. Rxd1 {[%emt 0:00:22]} Bxc5 {[%emt 0:00:05]} 10. a3 {[%emt 0:00:35]} O-O {[%emt 0:01:15]} 11. b4 {[%emt 0:01:35] The position is equal.} Be7 {[%emt 0:00:21]} 12. Bb2 {[%emt 0:00:45]} b5 {[%emt 0:12:32]} 13. Be2 {[%emt 0:12:16]} Bb7 {[%emt 0:04:31]} 14. Rac1 {[%emt 0:00:19]} Rfd8 {[%emt 0:01:35]} 15. Kf1 {[%emt 0:01:28] An uneventful encounter.   Weighted Error Value: White=0.03 (flawless) /Black=0.00 (flawless) .  OK:         	White=2     	Black=3} 1/2-1/2

[Event "Czech Extraliga 2024-25"]
[Site "Czechia"]
[Date "2024.11.03"]
[Round "2.3"]
[White "Straka, Vojtech"]
[Black "Krejci, Jan"]
[Result "0-1"]
[ECO "A18"]
[WhiteElo "2424"]
[BlackElo "2526"]
[Annotator "TA"]
[PlyCount "124"]
[EventDate "2024.09.12"]
[EventType "team-tourn"]
[EventCountry "CZE"]
[SourceTitle "playchess.com"]
[Source "ChessBase"]
[SourceQuality "1"]
[TimeControl "40/5400+30:1800+30"]

{[%evp 43,124,0,0,0,2,0,0,0,0,0,0,-7,-6,-8,-4,-6,-5,-31,-31,-33,-25,-27,0,0,-1,-18,-8,-8,-8,-66,-16,-146,-135,-220,-200,-275,-281,-278,-252,-220,-218,-400,-224,-427,-454,-515,-500,-487,-453,-520,-488,-513,-517,-627,-563,-946,-968,-800,-621,-1312,-1170,-1672,-1453,-1733,-1649,-1279,-1151,-1963,-1817,-7257,-6087,-5065,-2906,-29973,-29974,-29977,-29977,-29972,-6414,-29989,-29989,-29990,-29991]} 1. c4 {[%emt 0:00:05]} Nf6 {[%emt 0:00:05]} 2. Nc3 {[%emt 0:00:18]} e6 {[%emt 0:00:05]} 3. e4 {[%emt 0:00:41]} d5 {[%emt 0:00:05]} 4. e5 {[%emt 0:05:04]} d4 {[%emt 0:00:02]} 5. exf6 {[%emt 0:00:08]} dxc3 {[%emt 0:00:04]} 6. bxc3 {[%emt 0:00:10]} Qxf6 {[%emt 0:00:02] A18: English Opening: Flohr-Mikenas System (1 c4 Nf6 2 Nc3 e6 3 e4).} 7. Bd3 {[%emt 0:00:18]} Bd7 {[%emt 0:24:15]} 8. Be4 {[%emt 0:13:28]} Qe5 $146 {[%emt 0:03:11]} ({Predecessor:} 8... Bc6 9. Bxc6+ Nxc6 10. d4 Qg6 11. Nf3 Qxg2 12. Rg1 Qh3 13. Rb1 Qf5 14. Rxb7 Nxd4 {1-0 Bernabeu Lopez,C (2413)-Arias Rodriguez,S (1990) Oviedo op 10th 2024 (2)}) 9. f3 {[%emt 0:04:25]} c5 {[%emt 0:06:57]} 10. Ne2 {[%emt 0:05:32]} Qc7 {[%emt 0:04:26]} 11. d4 {[%emt 0:10:19]} Bd6 {[%emt 0:02:30]} 12. Rb1 {[%emt 0:07:53]} Nc6 {[%emt 0:02:10]} 13. Be3 {[%emt 0:01:13]} Na5 {[%emt 0:14:57]} 14. dxc5 {[%emt 0:21:22]} Bxc5 {[%emt 0:00:21]} 15. Bxc5 {[%emt 0:00:08]} Qxc5 {[%emt 0:00:04]} 16. Qd4 {[%emt 0:00:12]} Qxd4 {[%emt 0:10:15]} 17. cxd4 {[%emt 0:00:36]} f5 {[%emt 0:05:10]} 18. Bd3 {[%emt 0:04:48]} b6 {[%emt 0:00:05]} 19. Kd2 {[%emt 0:02:08]} Rc8 {[%emt 0:00:46]} 20. Rhc1 {[%emt 0:00:10]} Ke7 {[%emt 0:00:05]} 21. Rc3 {[%emt 0:01:59]} Rc7 {[%emt 0:00:51]} 22. Rbc1 {[%emt 0:00:28]} Rd8 {[%emt 0:05:53]} 23. c5 {[%emt 0:03:10]} bxc5 {[%emt 0:02:48]} 24. Rxc5 {[%emt 0:00:12]} Rxc5 {[%emt 0:00:08]} 25. Rxc5 {[%emt 0:00:07]} Nc6 {[%emt 0:00:24]} 26. Ke3 {[%emt 0:06:46]} Rb8 {[%emt 0:01:21]} 27. Rb5 {[%emt 0:03:14]} Rxb5 {[%emt 0:01:08]} 28. Bxb5 {[%emt 0:00:02]} Nb4 {[%emt 0:00:08]} 29. Bc4 {[%emt 0:00:54]} Bc6 {[%emt 0:01:46]} 30. Nf4 {[%emt 0:00:49]} g5 {[%emt 0:00:32]} 31. Ne2 {[%emt 0:03:05]} (31. Nxe6 $2 Bd5 32. Nxg5 Bxc4 33. Nxh7 Nd5+ (33... Nxa2 $2 34. Kd2 $19) 34. Kd2 Bxa2 $19) 31... Kd6 {[%emt 0:01:23]} 32. Kd2 {[%emt 0:01:31]} Bd5 {[%emt 0:03:19]} 33. Bxd5 {[%emt 0:00:12]} Nxd5 {[%emt 0:00:02]} 34. g3 {[%emt 0:03:06]} Kc6 {[%emt 0:05:04]} 35. Nc1 {[%emt 0:02:51]} Kb5 {[%emt 0:00:55]} 36. Nb3 {[%emt 0:00:34]} (36. Nd3 $1 $11) 36... Kc4 {[%emt 0:00:25]} (36... Kb4 $1 $15) 37. Nc5 {[%emt 0:00:02] [#]} (37. Na5+ $1 $11 {was the only way to keep the balance.} Kxd4 38. Nc6+ Kc5 39. Nxa7) 37... Nc7 $1 $17 {[%emt 0:00:47]} (37... Kxd4 38. Nxe6+ Kc4 39. Nxg5 $16) 38. Ke3 {[%emt 0:00:00]} (38. Nb7 $17 {was called for.}) 38... e5 $1 $19 {[%emt 0:00:47]} 39. Nd7 {[%emt 0:00:50]} exd4+ {[%emt 0:04:28]} 40. Kd2 {[%emt 0:00:02]} Ne6 {[%emt 0:00:14]} 41. Nf6 {[%emt 0:02:08]} h6 {[%emt 0:00:59]} 42. Ng8 $2 {[%emt 0:18:49]} (42. Nd7) 42... h5 {[%emt 0:02:04]} (42... d3 $142 43. f4 Nd4 (43... gxf4 $2 44. gxf4 Nc5 45. Ne7 $19)) 43. Ne7 $2 {[%emt 0:00:17]} (43. Nh6 g4 44. f4) 43... f4 $19 {[%emt 0:01:54]} 44. gxf4 {[%emt 0:00:52]} Nxf4 {[%emt 0:00:39]} 45. Nc8 {[%emt 0:03:13]} Nh3 {[%emt 0:08:53]} 46. Nd6+ {[%emt 0:04:22]} Kd5 {[%emt 0:00:15]} 47. Nf7 {[%emt 0:00:02]} a5 {[%emt 0:06:22]} 48. a4 {[%emt 0:00:30]} Kc5 {[%emt 0:04:29]} 49. Ne5 {[%emt 0:00:37]} Nf4 {[%emt 0:00:44]} 50. Kc2 {[%emt 0:00:17]} Kd5 {[%emt 0:01:58]} 51. Nf7 {[%emt 0:00:45]} Ne6 {[%emt 0:00:04]} 52. Kb3 {[%emt 0:00:41]} h4 {[%emt 0:01:47]} 53. Kc2 {[%emt 0:02:11]} Kc4 {[%emt 0:00:26]} 54. Ne5+ {[%emt 0:00:08]} Kc5 {[%emt 0:02:38]} 55. Kb3 {[%emt 0:00:38]} Kd5 {[%emt 0:00:21]} 56. Nf7 {[%emt 0:00:06]} Nc5+ {[%emt 0:00:27]} 57. Kc2 {[%emt 0:00:12]} Nxa4 {[%emt 0:00:14]} 58. Nxg5 {[%emt 0:00:08]} Nc5 {[%emt 0:00:06]} 59. f4 {[%emt 0:01:00]} a4 {[%emt 0:00:17]} 60. Nf3 {[%emt 0:04:04]} Ke4 {[%emt 0:01:41]} (60... d3+ $142 61. Kc3 Ke4 62. Ne5 Kxf4 63. Nc4 Kf3 64. Nd2+ Ke2 65. Nb1 a3 66. Nxa3 d2 67. Kc4 d1=Q (67... d1=R $2 68. h3 $19) 68. Nb5 Qc1+ 69. Kd5 Nb3 70. Nd6 Qc5+ 71. Ke6 Nd4+ (71... Qf2 72. h3 Qe3+ 73. Kd7 Qxh3+ 74. Kc7 Qf3 75. Kd7 h3 76. Ke7 h2 77. Nf7 h1=Q 78. Ng5 Qb7+ 79. Kf6 Qh6+ 80. Ke5 Qxg5+ 81. Ke6 Qbe7#) 72. Kd7 Qc6+ 73. Ke7 Qc7+ 74. Ke8 Qxd6 75. Kf7 Qe6+ (75... Qxh2 {is a self mate.} 76. Ke7 Qe5+ 77. Kd7 h3 78. Kd8 h2 79. Kd7 h1=Q 80. Kc8 Qa8+ 81. Kd7 Qae8#) 76. Kg7 Nf5+ 77. Kh7 Qh6+ 78. Kg8 Qg7#) 61. Nxh4 {[%emt 0:00:30]} d3+ {[%emt 0:00:20]} 62. Kc3 {[%emt 0:00:35]} a3 {[%emt 0:00:21]} ({Worse is} 62... Kxf4 63. Ng2+ Kf5 64. Ne1 $11) 0-1

[Event "Czech Extraliga 2024-25"]
[Site "Czechia"]
[Date "2024.11.03"]
[Round "2.4"]
[White "Ragger, Markus"]
[Black "Stalmach, Richard"]
[Result "1/2-1/2"]
[ECO "E08"]
[WhiteElo "2579"]
[BlackElo "2444"]
[Annotator "TA"]
[PlyCount "121"]
[EventDate "2024.09.12"]
[EventType "team-tourn"]
[EventCountry "CZE"]
[SourceTitle "playchess.com"]
[Source "ChessBase"]
[SourceQuality "1"]
[TimeControl "40/5400+30:1800+30"]

{[%evp 17,121,6,29,30,25,19,27,34,32,19,47,38,44,0,0,0,0,0,0,0,0,0,0,0,0,0,12,9,0,0,0,5,4,0,4,0,5,15,21,0,17,0,25,10,13,18,12,28,22,27,15,0,0,0,0,0,0,0,0,0,0,0,0,0,0,0,0,-12,0,0,80,90,73,0,0,0,0,0,0,0,0,0,0,0,0,0,0,0,0,0,0,0,0,0,0,0,0,0,0,0,0,0,0,0,0,0]} 1. d4 {[%emt 0:00:03]} Nf6 {[%emt 0:00:07]} 2. c4 {[%emt 0:00:05]} e6 {[%emt 0:00:06]} 3. g3 {[%emt 0:00:04]} d5 {[%emt 0:00:06]} 4. Bg2 {[%emt 0:00:05]} Bb4+ {[%emt 0:00:08]} 5. Bd2 {[%emt 0:00:05]} Be7 {[%emt 0:00:04]} 6. Nf3 {[%emt 0:00:06]} O-O {[%emt 0:00:06]} 7. O-O {[%emt 0:00:15]} c6 {[%emt 0:00:16]} 8. Qc2 {[%emt 0:00:05]} Nbd7 {[%emt 0:00:04]} 9. Bf4 {[%emt 0:00:06]} a5 {[%emt 0:00:05]} 10. Rd1 {[%emt 0:00:24]} a4 {[%emt 0:00:08]} 11. h4 {[%emt 0:00:38]} h6 {[%emt 0:02:26]} 12. Nbd2 {[%emt 0:02:21] White has an edge.} Nh5 {[%emt 0:05:44]} 13. e3 {[%emt 0:03:45]} Kh8 {[%emt 0:41:19]} 14. Rac1 {[%emt 0:11:47]} Rg8 {[%emt 0:00:15]} 15. Be5 {[%emt 0:14:14]} f6 {[%emt 0:05:06]} 16. Qg6 {[%emt 0:00:20] [#] Intending Ng5 and mate.} fxe5 {[%emt 0:00:23]} 17. Qxh5 {[%emt 0:00:09]} e4 {[%emt 0:00:06]} 18. Ng5 {[%emt 0:04:04] And now Nf7+ would win.} Nf6 {[%emt 0:17:55]} 19. Nf7+ {[%emt 0:00:35]} Kh7 {[%emt 0:04:59]} 20. Nxd8 {[%emt 0:25:11]} Nxh5 {[%emt 0:00:12]} 21. Nf7 {[%emt 0:00:01]} g5 {[%emt 0:00:09]} 22. hxg5 {[%emt 0:03:42]} hxg5 {[%emt 0:00:08]} 23. Bf1 {[%emt 0:01:08]} Kg7 {[%emt 0:05:32]} 24. Ne5 {[%emt 0:02:51]} Bd6 {[%emt 0:00:24]} 25. Be2 {[%emt 0:04:38]} Nf6 {[%emt 0:01:35]} 26. f4 {[%emt 0:00:30]} exf3 {[%emt 0:00:29]} 27. Ndxf3 {[%emt 0:00:17] Excellent horsemanship.} Nd7 {[%emt 0:03:33]} 28. Kg2 {[%emt 0:04:02]} Nxe5 {[%emt 0:00:07]} 29. Nxe5 {[%emt 0:00:07]} Ra5 {[%emt 0:01:57]} 30. c5 {[%emt 0:04:42]} Bxe5 {[%emt 0:00:21]} 31. dxe5 {[%emt 0:00:01] With the idea Rf1.} Bd7 {[%emt 0:00:16]} 32. Rd4 {[%emt 0:00:36]} Be8 {[%emt 0:01:44]} 33. Rb4 {[%emt 0:03:21]} Ra7 {[%emt 0:00:16]} 34. Bd3 {[%emt 0:07:55]} Rf8 $1 {[%emt 0:04:41]} 35. Rf1 {[%emt 0:03:38]} Rxf1 {[%emt 0:04:47]} 36. Kxf1 $11 {[%emt 0:00:01][%mdl 4096] Endgame. KRB-KRB} Bg6 {[%emt 0:01:08]} 37. Ke2 {[%emt 0:03:57]} Bxd3+ {[%emt 0:01:24]} 38. Kxd3 {[%emt 0:00:02] KR-KR} Kg6 {[%emt 0:00:10]} 39. e4 {[%emt 0:03:16]} Ra5 {[%emt 0:00:57]} 40. Rxb7 {[%emt 0:00:39]} Rxc5 {[%emt 0:00:27]} 41. Rb4 {[%emt 0:09:56]} a3 {[%emt 0:04:39]} 42. bxa3 {[%emt 0:01:12][%cal Bb2a3,Ba3a4][%mdl 32]} Kh5 {[%emt 0:03:39]} 43. a4 {[%emt 0:02:05]} d4 {[%emt 0:01:09]} 44. Rc4 {[%emt 0:03:49]} (44. Rxd4 Kg4 $11) 44... Rxe5 {[%emt 0:01:48]} 45. Rxc6 {[%emt 0:05:41]} ({Reject} 45. Rxd4 Kg4 $11) (45. Kxd4 $16 Ra5 46. Kc3 (46. Rxc6 e5+ 47. Kc4 Rxa4+ 48. Kd5 Rxa2 $11)) 45... Kg4 {[%emt 0:00:06] The position is equal.} 46. Kxd4 {[%emt 0:01:00]} Ra5 {[%emt 0:00:04]} 47. Rxe6 {[%emt 0:00:14]} Rxa4+ {[%emt 0:00:18]} 48. Ke5 {[%emt 0:00:24]} Ra5+ {[%emt 0:08:41]} 49. Kf6 {[%emt 0:00:54]} Kxg3 {[%emt 0:00:56]} 50. e5 {[%emt 0:00:38]} g4 {[%emt 0:00:19][%cal Bg5g4,Bg4g3][%mdl 32]} 51. Rb6 {[%emt 0:00:40]} Rxa2 {[%emt 0:00:20]} 52. e6 {[%emt 0:01:36]} Rf2+ {[%emt 0:00:14]} 53. Kg5 {[%emt 0:00:50]} Re2 {[%emt 0:00:22]} 54. Kf5 {[%emt 0:00:26]} Kh3 {[%emt 0:01:04]} 55. Rb7 {[%emt 0:00:42]} g3 {[%emt 0:00:16]} 56. Rh7+ {[%emt 0:00:15]} Kg2 {[%emt 0:00:04]} 57. Rg7 {[%emt 0:00:25]} Kf2 {[%emt 0:00:37]} 58. e7 {[%emt 0:00:24]} g2 {[%emt 0:00:12][%cal Oe2e7] [#] aiming for ...Rxe7!} 59. Kf6 {[%emt 0:00:13]} Rxe7 {[%emt 0:00:17]} 60. Rxg2+ {[%emt 0:00:14]} Kxg2 {[%emt 0:00:06]} 61. Kxe7 {[%emt 0:09:36] Weighted Error Value: White=0.04 (flawless) /Black=0.05 (flawless) .  Mistake:       	White=1     	Black=1      Inaccurate:     	White=1     	Black=1      OK:         	White=20    	Black=33     Best:        	White=1     	Black=2      Strong:       	---       	Black=1} 1/2-1/2

[Event "Czech Extraliga 2024-25"]
[Site "Czechia"]
[Date "2024.11.03"]
[Round "2.4"]
[White "Dragnev, Valentin"]
[Black "Hollan, Martin"]
[Result "0-1"]
[ECO "B31"]
[WhiteElo "2566"]
[BlackElo "2347"]
[Annotator "TA"]
[PlyCount "80"]
[EventDate "2024.09.12"]
[EventType "team-tourn"]
[EventCountry "CZE"]
[SourceTitle "playchess.com"]
[Source "ChessBase"]
[SourceQuality "1"]
[TimeControl "40/5400+30:1800+30"]

{[%evp 22,80,53,22,110,104,112,102,112,97,119,125,139,155,166,163,148,149,153,147,167,142,147,157,251,257,272,207,227,207,328,286,278,283,299,246,224,148,157,112,172,-66,-65,-227,-245,-249,-245,-303,-290,-535,-547,-570,-565,-809,-811,-800,-751,-951,-950,-2158,-2206]} 1. e4 {[%emt 0:00:03]} c5 {[%emt 0:00:23]} 2. Nf3 {[%emt 0:00:07]} Nc6 {[%emt 0:00:07]} 3. Bb5 {[%emt 0:00:09]} g6 {[%emt 0:01:47]} 4. O-O {[%emt 0:00:28]} Bg7 {[%emt 0:00:12]} 5. Re1 {[%emt 0:00:08]} e5 {[%emt 0:00:49]} 6. Bxc6 {[%emt 0:00:18]} bxc6 {[%emt 0:01:50]} 7. c3 {[%emt 0:00:51]} Ne7 {[%emt 0:01:14]} 8. d4 {[%emt 0:00:41]} cxd4 {[%emt 0:00:23]} 9. cxd4 {[%emt 0:00:03]} exd4 {[%emt 0:00:09]} 10. Nxd4 {[%emt 0:00:08][%cal Bf3d4,Bd4b3,Bb3c5][%mdl 32]} O-O {[%emt 0:00:20]} 11. Nc3 {[%emt 0:01:06][%cal Bb1c3,Bc3a4,Ba4b2,Bb2d3][%mdl 32]} Rb8 {[%emt 0:17:41]} 12. Nb3 {[%emt 0:02:02]} d6 {[%emt 0:01:06]} (12... Qc7 $11) 13. Bf4 $16 {[%emt 0:02:02]} Be5 {[%emt 0:00:13]} 14. Bxe5 {[%emt 0:04:09]} dxe5 {[%emt 0:00:26] White is better.} 15. Qc2 {[%emt 0:00:43]} Qd6 {[%emt 0:16:41] [#]} 16. Na4 $1 {[%emt 0:03:55]} Be6 {[%emt 0:07:35] [#]} 17. Nbc5 $1 {[%emt 0:02:38]} Rb4 {[%emt 0:01:04]} 18. Rad1 {[%emt 0:03:25]} Rd4 {[%emt 0:01:31]} 19. Rxd4 {[%emt 0:00:23]} exd4 {[%emt 0:00:50]} 20. b3 {[%emt 0:05:42]} Rd8 {[%emt 0:05:10]} 21. Nb2 {[%emt 0:02:36]} Bc8 {[%emt 0:01:54]} 22. Nbd3 {[%emt 0:00:27]} g5 {[%emt 0:01:56]} (22... Kg7 $16 23. Qc4 Qb8) 23. Qd2 $18 {[%emt 0:02:19]} h6 {[%emt 0:02:31]} 24. Qa5 {[%emt 0:06:14][%cal Oe4e5] aiming for e5!} Ng6 {[%emt 0:01:25]} 25. Qxa7 {[%emt 0:00:50]} Nh4 {[%emt 0:06:41]} (25... Be6 {was worth a try.} 26. e5 Qe7 27. Qxe7 Nxe7) 26. e5 {[%emt 0:12:54]} Qg6 {[%emt 0:01:49]} 27. Qc7 {[%emt 0:02:38]} Re8 {[%emt 0:10:06]} 28. Qd6 {[%emt 0:10:54]} Bf5 {[%emt 0:08:20]} 29. Qxg6+ {[%emt 0:02:04]} Nxg6 {[%emt 0:00:15]} 30. a4 {[%emt 0:11:17]} Nf4 {[%emt 0:02:08]} (30... Rb8 $16 {keeps fighting.}) 31. Nb4 $2 {[%emt 0:00:45] Excellent horsemanship.} (31. Nxf4 $18 gxf4 32. f3) 31... d3 $15 {[%emt 0:01:39] ...d2 would now be deadly.} 32. e6 $2 {[%emt 0:20:53] This move loses the game for White.} ({Better is} 32. Nxc6 $15 Ne2+ 33. Kh1 (33. Kf1 Nc3 $19)) 32... d2 $19 {[%emt 0:03:29]} 33. Rd1 {[%emt 0:01:16]} Nxe6 {[%emt 0:00:57]} 34. Nd7 {[%emt 0:01:07]} Kg7 {[%emt 0:00:24] Repels Nf6. ...Nd4 is the strong threat.} 35. Ne5 $2 {[%emt 0:00:59]} (35. Nxc6 $2 {perishes.} Nd4 36. Nde5 Nxc6 $19 (36... Nxb3 $2 37. f4 $19)) (35. Rxd2 Nc5 (35... Nf8 $2 36. h4 $19) 36. h4 Bxd7 (36... Nxd7 $2 37. hxg5 c5 38. gxh6+ Kxh6 39. Nc6 $19) 37. hxg5 hxg5 (37... Nxb3 38. gxh6+ Kxh6 39. Rxd7 $16) (37... Re1+ $2 38. Kh2 $19) 38. a5) 35... Nd4 {[%emt 0:00:58][%csl LRb3,LRe5] Black is clearly winning.} 36. f4 {[%emt 0:00:45]} Nxb3 {[%emt 0:00:29] Threatens to win with ...c5.} 37. Kf2 {[%emt 0:01:09]} c5 {[%emt 0:00:54]} 38. g4 {[%emt 0:00:08]} Bh7 {[%emt 0:00:28]} 39. Nbd3 {[%emt 0:00:56] [#]} c4 $1 {[%emt 0:01:01][%mdl 512]} 40. a5 {[%emt 0:00:46]} (40. f5 c3) 40... Bxd3 {[%emt 0:00:57] Weighted Error Value: White=0.80/Black=0.23 (precise) .  Loses game:     	White=1     	---        Missed win:     	White=1     	---        Mistake:       	White=1     	Black=3      Inaccurate:     	White=2     	---        OK:         	White=7     	Black=9      Best:        	White=1     	Black=3      Strong:       	White=2     	---} 0-1